Cogmind - Beta 16 @@@ ROGUE MODE // 2025.11.10 @ 21:06:10 Player: ClassActJerk Result: Destroyed by C7-JG9(R) with Subdweller Beam Cannon Performance ------------- Evolutions (0) 0 Regions Visited (2) 400 Robots Destroyed (8) 40 Value Destroyed (289) 289 Prototype IDs (0) 0 Alien Tech Used (0) 0 Bonus (0) 0 TOTAL SCORE: 729 Bonus ------- None Cogmind --------- Core Integrity 0/250 Matter 270/300 Energy 100/100 System Corruption 0% Temperature Cool (94) Movement Core (100) Ox1 Location -10/Subcaves Parts ------- > --- POWER (1) -------- (None) > --- PROPULSION (2) --- (None) > --- UTILITY (2) ------ Small Storage Unit > --- WEAPON (2) ------- (None) > --- INVENTORY (8) ---- (None) Peak State ------------ > --- POWER ------------ Light Ion Engine > --- PROPULSION ------- Light Treads Light Treads > --- UTILITY ---------- Small Storage Unit > --- WEAPON ----------- EM Pulse Gun Assault Rifle > --- INVENTORY -------- Ion Engine Assault Rifle [Rating: 6] Favorites ----------- Power Ion Engine Engine Ion Engine Propulsion Light Treads Treads Light Treads Utility Small Storage Unit Storage Small Storage Unit Weapon Assault Rifle Energy Gun EM Pulse Gun Ballistic Gun Assault Rifle Launcher Grenade Launcher Build | -11 -10 -10 ------- Run | Yrd Mat Sub Slots Evolved . | . . . Power . | . . . Propulsion . | . . . Utility . | . . . Weapon . | . . . Parts Attached 12 | 6 2 4 Power 3 | 1 1 1 Engine 3 | 1 1 1 Core . | . . . Reactor . | . . . Propulsion 3 | 2 . 1 Treads 3 | 2 . 1 Leg . | . . . Wheel . | . . . Hover . | . . . Flight . | . . . Utility 1 | 1 . . Device . | . . . Storage 1 | 1 . . Processor . | . . . Hackware . | . . . Protection . | . . . Artifact . | . . . Weapon 5 | 2 1 2 Energy Gun 2 | 1 . 1 Energy Cannon . | . . . Ballistic Gun 2 | 1 1 . Ballistic Cannon . | . . . Launcher 1 | . . 1 Special Weapon . | . . . Impact Weapon . | . . . Slashing Weapon . | . . . Piercing Weapon . | . . . Special Melee Weapon . | . . . Unidentified Prototypes . | . . . Parts Lost 9 | . 1 8 Power 3 | . 1 2 Propulsion 2 | . . 2 Utility . | . . . Weapon 4 | . . 4 Highest Loss Streak 5 | . 1 5 To Critical Strikes . | . . . Average Backups 2 | 1 2 2 Power . | . . . Propulsion . | . . . Utility . | . . . Weapon 1 | 1 1 1 Tool/Special . | . . . Unused Backups . | . . . Power . | . . . Propulsion . | . . . Utility . | . . . Weapon . | . . . Tool/Special . | . . . Average Slot Usage (%) 80 | . 84 78 Engine 13 | . 13 13 Treads 25 | . 28 23 Storage 14 | . 14 14 Energy Gun 4 | . 7 2 Ballistic Gun 22 | . 21 23 Peak Build Rating 6 | 6 6 6 Average Rating 5 | 5 5 5 On Entrance 4 | . 6 6 Avg Prop Armor Cover (%) . | . . . Naked Turns . | . . . Heaviest Build 14 | 12 14 14 Greatest Support 40 | 40 40 40 Greatest Overweight (x) 3 | . . 3 Average Overweight (x) . | . . . Largest Inventory Capacity 8 | 8 8 8 Average Capacity 7 | 7 8 8 Most Carried 5 | 5 4 4 Average Carried 2 | 1 2 2 Final Capacity 8 | 8 8 8 Final Carried 3 | 2 3 . Class Distribution -------------------- 100% | Mutant Dominant Class ---------------- Mutant | -10/Materials Mutant | -10/Subcaves Resources | -11 -10 -10 ----------- Run | Yrd Mat Sub Matter Collected 451 | 176 168 107 Remotely . | . . . Salvage Created 355 | . 222 133 Parts 21 | . 12 9 Haulers Intercepted . | . . . Recyclers Shooed . | . . . Parts Field Recycled . | . . . Retrieved Matter . | . . . Parts Self-Destructed 8 | . . 8 Prevented . | . . . Parts Restored . | . . . Kills | -11 -10 -10 ------- Run | Yrd Mat Sub Combat Hostiles Destroyed 7 | . 4 3 Guns 7 | . 4 3 Classes Destroyed 3 | . 2 1 Worker 1 | . 1 . Grunt 6 | . 4 2 Sentry 1 | . . 1 Best Kill Streak 3 | . 3 1 Combat Bots Only 2 | . 2 1 Max Kills in Single Turn 1 | . 1 1 Gunslinging . | . . . Exploded . | . . . Melee . | . . . Uniques/NPCs Destroyed . | . . . Combat | -11 -10 -10 -------- Run | Yrd Mat Sub Hostile Shots Fired 91 | . 24 67 Missed 20 | . 5 15 Hits 71 | . 19 52 Projectile 71 | . 19 52 Critical Strikes 1 | . . 1 Damage Taken 1224 | . 286 938 Core 263 | . 15 248 Absorbed by Shields . | . . . Core Remaining (%) 100 | 100 . . Volleys Fired 48 | . 19 29 Largest 2 | . 2 2 Hottest 70 | . 60 70 Shots Fired 87 | . 38 49 Gun 86 | . 38 48 Cannon . | . . . Launcher 1 | . . 1 Special . | . . . Kinetic 62 | . 23 39 Thermal 9 | . . 9 Explosive 1 | . . 1 Electromagnetic 15 | . 15 . Robot Hit Streak 19 | . 8 19 Robot Miss Streak 2 | . 2 2 Penetration Max . | . . . Secondary Targets . | . . . Shots Hit Robots 71 | . 29 42 Core Hits 18 | . 11 7 Critical Kills 1 | . 1 . Critical Parts Destroyed . | . . . Critical Strikes 1 | . 1 . Destroy 1 | . 1 . Melee Attacks . | . . . Impact . | . . . Slashing . | . . . Piercing . | . . . Sneak Attacks . | . . . Combat Hostiles . | . . . Follow-up Attacks . | . . . Damage Inflicted 842 | . 373 469 Guns 842 | . 373 469 Cannons . | . . . Explosions . | . . . Melee . | . . . Ramming . | . . . Kinetic 608 | . 218 390 Thermal 79 | . . 79 Explosive . | . . . Electromagnetic 155 | . 155 . Impact . | . . . Slashing . | . . . Piercing . | . . . Highest Corruption . | . . . Average Corruption . | . . . Corruption Purged . | . . . Corruption Blocked . | . . . Overload Shots . | . . . Overflow Damage . | . . . Projectiles . | . . . Explosions . | . . . Melee . | . . . Knockbacks . | . . . Impact . | . . . Kinetic . | . . . Secondary . | . . . Self-Inflicted Damage 30 | . . 30 Shots 1 | . . 1 Rammed . | . . . Targets Rammed . | . . . Kicked . | . . . Crushed . | . . . Highest Temperature 214 | . 72 214 Average Temperature 52 | . 44 149 Received Heat Transfer 796 | . 162 634 Siege Activations . | . . . Martial Activations . | . . . Shielding Activations . | . . . Robots Disrupted . | . . . Combat Hostiles . | . . . Robots Corrupted . | . . . Combat Hostiles . | . . . Parts Fried 1 | . 1 . Impact Corruptions . | . . . Robots Melted . | . . . Combat Hostiles . | . . . Parts Melted . | . . . Heat Transferred 175 | . . 175 Parts Sabotaged . | . . . Parts Stolen . | . . . Parts Stripped . | . . . Power Chain Reactions . | . . . Alert | -11 -10 -10 ------- Run | Yrd Mat Sub Maximum Alert Level . | . . . Low Security (%) 100 | 100 100 . Level 1 . | . . . Level 2 . | . . . Level 3 . | . . . Level 4 . | . . . Level 5 . | . . . High Security . | . . . Max Security . | . . . Peak Influence 51 | . 51 . Initial . | . . . Average 12 | . 16 . Influence Increases 206 | . 136 70 Destroy 0b10 Robot/C 140 | . 80 60 Destroy 0b10 Robot/NC 5 | . 5 . Destroy Leader 30 | . 20 10 Destroy Structure 1 | . 1 . Lose Combat Pursuer 30 | . 30 . Influence Decreases 206 | . 96 110 Entered New Map 20 | . . 20 Time Decay 166 | . 86 80 Lost Part 20 | . 10 10 Squads Dispatched 1 | . 1 . Investigation . | . . . Extermination . | . . . Reinforcement 1 | . 1 . Assault . | . . . Garrison . | . . . Intercept . | . . . Searches Triggered . | . . . Construction Impeded . | . . . Haulers Reinforced . | . . . Active Scanning Responses . | . . . Cargo Convoy Interrupts . | . . . Stealth | -11 -10 -10 --------- Run | Yrd Mat Sub Distress Signals 1 | . 1 . Communications Jammed . | . . . Distress Signals . | . . . Times Spotted 13 | . 8 5 Peak Tracking Total 4 | . 4 2 Tactical Retreats 1 | . 1 . Traps | -11 -10 -10 ------- Run | Yrd Mat Sub Traps Triggered . | . . . Indirectly . | . . . Trap Hack Attempts . | . . . Triggered . | . . . Disarmed . | . . . Reprogrammed . | . . . Reused . | . . . Traps Extracted . | . . . Installed . | . . . Triggered . | . . . Machines | -11 -10 -10 ---------- Run | Yrd Mat Sub Machines Disabled . | . . . Max in Single Turn . | . . . Machines Repaired . | . . . Machines Dismantled . | . . . Machines Sabotaged . | . . . Overloaded Fab Kills . | . . . Hacking | -11 -10 -10 --------- Run | Yrd Mat Sub Machines Accessed . | . . . Terminals . | . . . Fabricators . | . . . Repair Stations . | . . . Recycling Units . | . . . Scanalyzers . | . . . Garrison Access . | . . . Total Hacks . | . . . Successful . | . . . Failed . | . . . Catastrophic . | . . . Database Lockouts . | . . . Manual . | . . . Terminals . | . . . Fabricators . | . . . Repair Stations . | . . . Recycling Units . | . . . Scanalyzers . | . . . Garrison Access . | . . . Terminal Hacks . | . . . Fabricator Hacks . | . . . Repair Station Hacks . | . . . Recycling Unit Hacks . | . . . Scanalyzer . | . . . Garrison Access Hacks . | . . . Unauthorized Hacks . | . . . Terminals . | . . . Fabricators . | . . . Repair Stations . | . . . Recycling Units . | . . . Scanalyzers . | . . . Garrison Access . | . . . Data Cores Recovered . | . . . Used . | . . . Hacking Detections . | . . . Full Trace Events . | . . . Feedback Events . | . . . Feedback Blocked . | . . . Robot Schematics Acquired . | . . . Robots Built . | . . . Authchips . | . . . Time . | . . . Total Robot Build Rating . | . . . Part Schematics Acquired . | . . . Parts Built . | . . . Authchips . | . . . Time . | . . . Total Part Build Rating . | . . . Part Studies Acquired . | . . . Parts Repaired . | . . . Time . | . . . Parts Recycled . | . . . Recycled Matter . | . . . Retrieved Matter . | . . . Retrieved Components . | . . . Parts Scanalyzed . | . . . Part Schematics Acquired . | . . . Parts Damaged . | . . . Bothacking | -11 -10 -10 ------------ Run | Yrd Mat Sub Used RIF Installer . | . . . Robots Hacked . | . . . Non-combat . | . . . Combat . | . . . Robot Hacks Applied . | . . . Relay Couplers Released . | . . . Fabnet Peak Effective % . | . . . Robots Rewired . | . . . Allies Hacked . | . . . Hacks Repelled . | . . . Allies | -11 -10 -10 -------- Run | Yrd Mat Sub Total Allies . | . . . Largest Group . | . . . Highest-Rated Group . | . . . Highest-Rated Ally . | . . . Total Orders . | . . . Ally Attacks . | . . . Total Damage . | . . . Kills . | . . . Allies Corrupted . | . . . Allies Melted . | . . . Intel | -11 -10 -10 ------- Run | Yrd Mat Sub Active Infowar (turns) . | . . . Robot Analysis Total . | . . . Derelict Logs Recovered 1 | . . 1 Drone Launches . | . . . Drone Recoveries . | . . . Exploration | -11 -10 -10 ------------- Run | Yrd Mat Sub Turns Passed 905 | 121 316 468 Spaces Moved 384 | 72 130 182 Core 9 | 6 . 3 Treads 375 | 66 130 179 Legs . | . . . Wheels . | . . . Hover . | . . . Flight . | . . . Fastest Speed 50 | 50 160 160 Average Speed 158 | 150 160 160 Slowest Speed 200 | 160 160 200 Overloaded Moves . | . . . Propulsion Burnouts . | . . . Robots Hopped . | . . . Potential Cave-ins . | . . . Cave-ins Triggered . | . . . Exploration Rate (%) 16 | 5 22 23 Regions Visited 2 Branch Regions 1 Pre-discovered Areas . | . . . Known Exits Taken . | . . . Unknown Exits Taken 2 | 1 1 . Scrap Searched . | . . . Spaces Dug . | . . . Terrain Destroyed 2 | . . 2 Melee . | . . . Projectile . | . . . AOE 2 | . . 2 Terrain Rammed . | . . . Walls Destroyed . | . . . Machines Disabled . | . . . Actions | -11 -10 -10 --------- Run | Yrd Mat Sub Total 594 | 85 201 308 Wait 137 | . 47 90 Move 382 | 71 129 182 Hop . | . . . Pick Up 12 | 8 3 1 Fast Attach . | . . . Attach 11 | 6 2 3 Detach . | . . . Swap 2 | . . 2 Drop 2 | . 1 1 Fire 48 | . 19 29 Melee . | . . . Ram . | . . . Kick . | . . . Crush . | . . . Escape Stasis . | . . . Rewire . | . . . Trap . | . . . Miscellaneous . | . . . Route ------- -11/Scrapyard -10/Materials -10/Subcaves History --------- Turn | Location | Event 6 | -11/Scrapyard | Discovered new exit (range 15) 122 | -11/Scrapyard | Entered Materials 315 | -10/Materials | Build established: Mutant 427 | -10/Materials | Discovered new exit (range 8) 438 | -10/Materials | Entered Subcaves 821 | -10/Subcaves | Lost 3 parts (1p1n1w) 885 | -10/Subcaves | Core integrity fell below 50% 899 | -10/Subcaves | Core integrity fell below 20% 906 | -10/Subcaves | Destroyed by C7-JG9(R) with Subdweller Beam Cannon Last Messages --------------- 00764_ Subatomizers dissect the Sml. Laser. 00768_ Sml. Laser fries itself beyond repair. 00769_ Acquired 30 matter. 00779_ Ion Engine fries itself beyond repair. 00780_ Assault Rifle destroyed. 00781_ Aluminum Leg fries itself beyond repair. 00786_ Lgt. Treads destroyed. 00790_ Ion Engine destroyed. 00795_ G-47 Trooper destroyed. 00798_ Acquired 43 matter. 00801_ Aluminum Leg fries itself beyond repair. 00802_ Subatomizers dissect the Imp. Heat Sink. 00806_ Imp. Heat Sink fries itself beyond repair. 00872_ Lgt. Treads destroyed. 00876_ Grenade Launcher destroyed. 00884_ Sml. Laser destroyed. 00898_ Assault Rifle destroyed. 00898_ Lgt. Ion Engine destroyed. 00902_ Critical hit (Meltdown: +250). Map ----- +----------------------------------------------------+ | ???????## #???? ???????????????? | | ???????# ##??? ???????????????? | | ???????# ###### ???????????????? | | ???????### ### #??????????????? | | ?????????## #??????????????? | | ??????????## % #???????????????? | | ???????????# ## #### ????????????????? | | ???????????# ### #?###????????????????? | | ??????????## ##?# ### ###??????????????? | | ?????????## #?## #??????????????? | | ??????#### ### #??????????????? | | ??????# #??????????????? | | ## ##??????????????? | | ## # #??????????????? | | # #### ##?####### ### ##??????????????? | | ?????###?????????#####?# #??????????????? | | ???????????????######??### ##?????????????? | | ??????????????## ### #?????????????? | | ????????????### ##?????????????? | | ?????????? ##??????????????? | | ?????????? #???????????????? | | ??????????? #???????????????? | | ?????????? ## ##???????????????? | | ??????????? # ###??????????????? | | ???????????? ### #??????????????? | | ????????????####???# """ @ #??????????????? | | ???????????????????# """"RR #??????????????? | | ???????????????????##"""" ##??????????????? | | ????????????????????#"""" #???????????????? | | ???????????????????? """"" ???????????????? | | ?????????????????????"" #??????????????? | | ??????????????????????? #??????????????? | | ??????????????????????? #??????????????? | | ??????????????????????? ##""""??????????????? | | ??????????????????????????"""#??????????????? | | ?????????????????????????? ##??????????????? | | ?????????????????????????? ????????????????? | | ????????????????????????????????????????????? | | ????????????????????????????????????????????? | | ????????????????????????????????????????????? | | ????????????????????????????????????????????? | | ????????????????????????????????????????????? | | ????????????????????????????????????????????? | | ????????????????????????????????????????????? | | ????????????????????????????????????????????? | | ????????????????????????????????????????????? | | ????????????????????????????????????????????? | | ????????????????????????????????????????????? | | ????????????????????????????????????????????? | | ????????????????????????????????????????????? | +----------------------------------------------------+ Best States ------------- Heat Dissipation 25 Energy Generation 10 Energy Capacity 250 Matter Stores 300 Matter Capacity 300 Sight Range 16 Terrain Scan Density 10 Evasion (%) 50 Recoil Reduction 2 Item Schematics ----------------- None Robot Schematics ------------------ None Fabricated ------------ Nothing Repaired ---------- Nothing Studied --------- None Alien Tech Used ----------------- None Achievements -------------- None Challenges ------------ None Game ------ Seed QuantumIntegrityScrapsphere Manual? 0 Play Time 00:07:29 Cumulative 18.8 hours Start 2025.11.10 @ 21:00:42 End 2025.11.10 @ 21:06:10 Sessions 1 Manual Loads 0 Difficulty Rogue Special Mode None Game No. 55 Rogue 55 Adventurer 0 Explorer 0 Win Type - Total 0 Types 0/0/0/0/0/0/0/0/0/0 Lore% 5 Gallery% 18 Achievement% 13 Wizard Run 0 Options --------- Layout 1 ASCII 0 Keyboard 0 Movement Mouse Keybinds 0 Fullscreen 1 Font 24/Terminus Map View 50x35 Zoom Use 0% Tactical HUD 1 Map Filters NONE Filters NONE Steam 1 RUN: 5ab5a8cf-bb3f-49dc-9fa6-0e27faaae762